fUSD/lending_fUSD_20240125
["ID","MTS","AMOUNT","RATE_DAILY","PERIOD"]
[312713309,1706187038150,-3004.89235176,0.00033,4]
[312713310,1706187038162,-545.49715374,0.00033,4]
[312713311,1706187038220,-3420.56391743,0.00033,4]
[312713312,1706187038289,-590.18551452,0.00033,4]
[312713313,1706187038301,-1555.62108373,0.00033,4]
[312713339,1706187041208,-9560.46956815,0.00033,4]
[312713345,1706187045390,-3592.55,0.00033,4]
[312713346,1706187045403,-18907.04999997,0.00033,4]
[312713347,1706187045415,-274.05079308,0.00033,4]
[312713348,1706187045429,-2781.9986694,0.00033,4]
[312713349,1706187045440,-925.35465002,0.00033,4]
[312713350,1706187045480,-538.34262579,0.00033,4]
[312713351,1706187045491,-480.03533669,0.00033,4]
[312713352,1706187045503,-1050.87873394,0.00033,4]
[312713353,1706187045514,-3444.28202626,0.00033,4]
[312713354,1706187045525,-5929.5028167,0.00033,4]
[312713355,1706187045596,-6482.46106349,0.00033,4]
[312713356,1706187045606,-420.3224339,0.00033347,4]
[312713357,1706187045616,-283.18,0.00033872,2]
[312713358,1706187045627,-1000.0,0.00034104,4]
[312713359,1706187045636,-155.70150421,0.00034105,4]
[312713360,1706187045646,-247.32726579,0.00034387,4]
[312713361,1706187045655,-150.0,0.00034718,3]
[312713362,1706187045665,-419.96246939,0.00034719,4]
[312713364,1706187045674,-4640.64426459,0.00034735,4]
[312713365,1706187045683,-2598.67036357,0.00034736,4]
[312713367,1706187045692,-1255.57609338,0.00034736,2]
[312713368,1706187045701,-1402.01427235,0.00034736,4]
[312713370,1706187045711,-367.07550151,0.00034736,4]
[312713372,1706187045722,-2949.83197426,0.00034736,4]
[312713373,1706187045732,-984.24808758,0.00034736,4]
[312713377,1706187045770,-1337.81523319,0.00034736,4]
[312713379,1706187045780,-346.4408392,0.00034736,4]
[312713380,1706187045792,-2058.19757072,0.00034736,4]
[312713382,1706187045803,-1051.37036506,0.00034736,4]
[312713384,1706187045812,-524.31645799,0.00034736,4]
[312713386,1706187045822,-6767.82570621,0.00034736,4]
[312713388,1706187045838,-2374.60403239,0.00034736,4]
[312713389,1706187045848,-5220.28105398,0.00034736,4]
[312713391,1706187045858,-4353.97613252,0.00034736,4]
[312713393,1706187045867,-1000.0,0.00034737,2]
[312713394,1706187045877,-2176.41097718,0.00034737,4]
[312713396,1706187045891,-520.84366577,0.00034737,4]
[312713398,1706187045907,-2459.53667299,0.00034737,4]
[312713402,1706187045935,-39.94581479,0.00034737,4]
[312713403,1706187045944,-1527.69938051,0.00034738,10]
[312713406,1706187045972,-440.41377552,0.00034738,10]
[312713408,1706187045985,-264.96451937,0.00034738,10]
[312713410,1706187046093,-254.08001132,0.00034738,10]
[312713411,1706187046105,-552.29999999,0.00034738,10]
[312713412,1706187046166,-46960.54231329,0.00034738,10]
[312713413,1706187046175,-150.0,0.00035766,2]
[312713414,1706187046185,-590.49934891,0.00036,14]
[312713415,1706187046194,-298.9984311,0.00036,4]
[312713416,1706187046204,-153.51,0.00036003,15]
[312713417,1706187046213,-868.46,0.00036037,2]
[312713418,1706187046222,-250.0,0.00036038,2]
[312713419,1706187046232,-283.18,0.00036136,2]
[312713420,1706187046242,-205.04,0.00036175,2]
[312713421,1706187046251,-8462.46462357,0.00036175,2]
[312713431,1706187099658,448.37690115,0.00018398,2]
[312713432,1706187112194,965.35447633,0.00021,4]
[312713433,1706187140179,156.86047358,0.00021,2]
[312713434,1706187147516,-801.95625464,0.00022079,2]
[312713435,1706187147536,-2023.31673073,0.00022996,2]
[312713436,1706187147557,-318.71536209,0.00022997,2]
[312713437,1706187147577,-2907.57610975,0.00022997,2]
[312713438,1706187147598,-2621.6757205,0.00022997,2]
[312713439,1706187147619,-90050.75982229,0.00022998,2]
[312713445,1706187302331,530.33480688,0.00021576,2]
[312713446,1706187302354,2933.03887344,0.00021576,2]
[312713448,1706187406709,-3090.0,0.00022067,2]
[312713450,1706187506456,-384.82722047,0.00022059,2]
[312713451,1706187506475,-1318.94682715,0.0002206,2]
[312713452,1706187506495,-1138.17145577,0.0002206,2]
[312713453,1706187506514,-19027.04764442,0.00022061,2]
[312713454,1706187506532,-9144.00685219,0.00022062,2]
[312713455,1706187739572,762.55,0.00019838,2]
[312713456,1706187799094,1241.01,0.00021603,2]
[312713457,1706187843070,156.62,0.00021607,2]
[312713458,1706187858854,196.69,0.00021607,10]
[312713459,1706187875896,-837.15,0.00021629,2]
[312713460,1706187875918,-458.44816547,0.00021638,2]
[312713461,1706187875939,-1318.94682715,0.00021639,2]
[312713462,1706187875960,-3000.0,0.0002164,2]
[312713463,1706187875981,-517.32648021,0.0002164,2]
[312713464,1706187876005,-2422.98009146,0.00021641,2]
[312713465,1706187876028,-941.84462436,0.00021641,2]
[312713466,1706187876051,-1000.0,0.00021641,2]
[312713467,1706187876073,-434.15,0.00021644,2]
[312713468,1706187876095,-564.34,0.00021647,2]
[312713469,1706187876116,-150.0,0.00021797,2]
[312713470,1706187876140,-150.0,0.00021797,2]
[312713471,1706187876160,-181.09,0.00021802,2]
[312713472,1706187876181,-200.0,0.00021802,2]
[312713473,1706187876202,-706.09,0.0002184,2]
[312713474,1706187876222,-352.94,0.00022,2]
[312713475,1706187876243,-150.0,0.00022,2]
[312713476,1706187876265,-214.92979742,0.00022,2]
[312713477,1706187897272,1847.74262692,0.0002184,2]
[312713478,1706187955482,-2422.98009146,0.00022014,2]
[312713479,1706187955501,-1318.94682715,0.00022015,2]
[312713480,1706187955521,-521.60885619,0.00022016,2]
[312713481,1706187955540,-203.36,0.00022017,2]
[312713482,1706187955560,-837.19098398,0.00022062,2]
[312713483,1706187955583,-13406.69,0.00022063,2]
[312713484,1706187955602,-421.38422799,0.0002207,2]
[312713485,1706187955622,-762.55,0.00022102,2]
[312713486,1706187955642,-2000.0,0.00022203,2]
[312713487,1706187955662,-150.0,0.00022249,2]
[312713488,1706187959080,458.44816547,0.00022014,2]
[312713489,1706187969757,-434.15,0.00022445,2]
[312713490,1706187969781,-499.99,0.00022445,2]
[312713493,1706187987680,-6708.07,0.0002254,2]
[312713494,1706187987700,-209.66,0.00022542,2]
[312713495,1706187987719,-957.69421576,0.000226,2]
[312713496,1706187987742,-155.47,0.00022679,2]
[312713497,1706187987764,-150.0,0.00022897,2]
[312713498,1706187987787,-925.52967714,0.00022898,2]
[312713499,1706187987807,-153.40299274,0.000229,2]
[312713500,1706187987828,-1142.64588285,0.0002299,2]
[312713501,1706187987849,-8898.71976341,0.0002299,2]
[312713502,1706187987869,-7203.18079498,0.0002299,2]
[312713503,1706187987888,-760.80515662,0.0002299,2]
[312713504,1706187987908,-486.22845061,0.0002299,2]
[312713505,1706187987928,-383.29437803,0.0002299,2]
[312713506,1706187987948,-1068.57166117,0.0002299,2]
[312713507,1706187987968,-1262.37262765,0.0002299,2]
[312713508,1706187987988,-506.22603929,0.0002299,2]
[312713509,1706187988008,-8.85059452,0.0002299,2]
[312713524,1706188203581,686.29,0.00020332,2]
[312713539,1706188232124,-250.0,0.00022109,2]
[312713540,1706188232135,-521.60885619,0.00022186,2]
[312713541,1706188232144,-6.07114381,0.00022187,2]
[312713542,1706188232234,-254.41885619,0.00022187,2]
[312713543,1706188232244,-166.31,0.00022452,2]
[312713544,1706188232260,-1262.37262765,0.00022497,2]
[312713545,1706188232269,-588.4,0.00022501,2]
[312713546,1706188232278,-150.0,0.00022586,2]
[312713547,1706188232288,-686.29,0.00022596,2]
[312713548,1706188232298,-2000.0,0.00022768,2]
[312713549,1706188232308,-178.31993037,0.00022892,2]
[312713550,1706188232317,-178.31993036,0.00022895,2]
[312713551,1706188232327,-178.31993036,0.00022897,2]
[312713552,1706188232337,-178.31993036,0.000229,2]
[312713553,1706188232347,-1667.59890677,0.000229,2]
[312713554,1706188232356,-201.98391847,0.000229,6]
[312713555,1706188232365,-158.63925825,0.0002299,2]
[312713556,1706188232374,-164.96152334,0.0002299,2]
[312713557,1706188232384,-3266.49254795,0.0002299,2]
[312713558,1706188232406,-500.42,0.0002299,2]
[312713559,1706188232433,-565.01594009,0.0002299,2]
[312713592,1706188234597,155.0,0.00020332,2]
[312713594,1706188238072,-1107.0,0.0002207,2]
[312713595,1706188238831,-2086.45940924,0.0002207,2]
[312713597,1706188238841,-22.04764448,0.0002299,2]
[312713599,1706188238851,-852.79586051,0.0002299,4]
[312713601,1706188238861,-288.669932,0.00022991,2]
[312713603,1706188238871,-246.71420662,0.00022991,2]
[312713605,1706188238881,-7709.8202403,0.00022991,2]
[312713607,1706188238890,-108085.16934642,0.00022992,2]
[312713610,1706188238900,-779.51108395,0.00022995,2]
[312713612,1706188238910,-18517.79138067,0.00022996,2]
[312713614,1706188238919,-158.98648489,0.00022996,2]
[312713615,1706188238929,-1814.00128451,0.00022996,2]
[312713648,1706188239306,-16778.48153658,0.00022996,2]
[312713652,1706188239343,-6445.92680117,0.00022996,2]
[312713654,1706188239358,-3047.53475621,0.00022996,2]
[312713656,1706188239367,-155.24623089,0.00022997,2]
[312713658,1706188239377,-1067.90212132,0.00022997,2]
[312713660,1706188239386,-205789.60852126,0.00022998,2]
[312713662,1706188239395,-8207.39356968,0.00022998,2]
[312713664,1706188239404,-204.82055215,0.00022998,2]
[312713666,1706188239413,-203.12390135,0.00022999,2]
[312713668,1706188239423,-184.91727295,0.00022999,2]
[312713670,1706188239432,-588.75374522,0.00022999,2]
[312713672,1706188239441,-187.08737059,0.00022999,2]
[312713673,1706188239450,-500.0,0.00022999,2]
[312713675,1706188239459,-500.0,0.00022999,2]
[312713677,1706188239468,-160.93243203,0.00022999,2]
[312713679,1706188239477,-500.0,0.00022999,2]
[312713681,1706188239486,-500.0,0.00022999,2]
[312713683,1706188239495,-154.25961189,0.00022999,2]
[312713685,1706188239504,-500.0,0.00022999,2]
[312713687,1706188239513,-150.0,0.00022999,2]
[312713689,1706188239522,-150.0,0.00022999,2]
[312713691,1706188239533,-150.0,0.00022999,2]
[312713693,1706188239542,-150.0,0.00022999,2]
[312713695,1706188239551,-150.0,0.00022999,2]
[312713697,1706188239560,-150.0,0.00022999,2]
[312713699,1706188239569,-4665046.03704211,0.00023,2]
[312713701,1706188239578,-411301.31170513,0.00023,2]
[312713703,1706188239587,-260.49,0.00023007,2]
[312713705,1706188239596,-347.68449445,0.0002313,2]
[312713707,1706188239605,-1000.0,0.00023353,2]
[312713709,1706188239614,-158.35,0.0002372,2]
[312713711,1706188239623,-196.69,0.00023725,10]
[312713712,1706188239632,-260.49,0.00023828,2]
[312713714,1706188239641,-588.4,0.00024145,2]
[312713716,1706188239650,-167.0,0.00024297,2]
[312713718,1706188239660,-217.69646664,0.000243,2]
[312713720,1706188239669,-260.49,0.00024649,2]
[312713722,1706188239678,-250.0,0.00024658,2]
[312713724,1706188239687,-150.0,0.0002474,2]
[312713726,1706188239696,-686.29,0.0002486,2]
[312713728,1706188239706,-1667.59890668,0.00024991,2]
[312713730,1706188239715,-435.20087155,0.00025,2]
[312713733,1706188239725,-200.0,0.00025,2]
[312713734,1706188239738,-450.0,0.00025,3]
[312713736,1706188239747,-260.49,0.0002547,2]
[312713738,1706188239757,-588.4,0.00025789,2]
[312713740,1706188239766,-500.0,0.00026,2]
[312713742,1706188239776,-1000.0,0.00026272,2]
[312713744,1706188239786,-3403.28,0.00026575,2]
[312713746,1706188239796,-723.71,0.00026575,2]
[312713748,1706188239805,-500.0,0.00027,3]
[312713750,1706188239815,-1667.59890668,0.00027082,2]
[312713752,1706188239826,-686.29,0.00027124,2]
[312713754,1706188239835,-534.78120717,0.00027131,2]
[312713756,1706188239845,-17929.0,0.000272,2]
[312713758,1706188239854,-3034.0,0.000272,2]
[312713760,1706188239863,-200.0,0.00027397,5]
[312713762,1706188239873,-155.0,0.00027397,2]
[312713764,1706188239882,-563.77,0.00027397,2]
[312713766,1706188239891,-169.58,0.000274,2]
[312713768,1706188239900,-169.58,0.000274,2]
[312713770,1706188239910,-169.58,0.000274,2]
[312713772,1706188239919,-169.58,0.000274,2]
[312713775,1706188239929,-169.58,0.000274,2]
[312713776,1706188239938,-169.58,0.000274,2]
[312713778,1706188239947,-169.58,0.000274,2]
[312713780,1706188239957,-169.58,0.000274,2]
[312713782,1706188239966,-169.58,0.000274,2]
[312713784,1706188239976,-169.58,0.000274,2]
[312713786,1706188239985,-588.4,0.00027433,2]
[312713789,1706188239995,-151.10829198,0.0002748,2]
[312713791,1706188240004,-563.77,0.00027686,2]
[312713793,1706188240013,-200.0,0.00027945,5]
[312713794,1706188240022,-563.77,0.00027974,2]
[312713797,1706188240033,-563.77,0.00028262,2]
[312713799,1706188240042,-200.0,0.00028493,5]
[312713801,1706188240051,-563.77,0.00028551,2]
[312713803,1706188240060,-201.98391844,0.0002865,15]
[312713805,1706188240069,-158.35,0.00028753,2]
[312713807,1706188240079,-155.0,0.00028767,2]
[312713809,1706188240090,-563.77,0.00028839,2]
[312713811,1706188240099,-29715.71313864,0.00029,2]
[312713813,1706188240109,-616.39154108,0.00029,15]
[312713815,1706188240119,-550.0,0.00029,3]
[312713817,1706188240128,-379.28197337,0.00029041,5]
[312713819,1706188240140,-588.4,0.00029077,2]
[312713821,1706188240149,-563.77,0.00029128,2]
[312713823,1706188240158,-1667.59890668,0.00029173,2]
[312713825,1706188240167,-1000.0,0.00029191,2]
[312713827,1706188240177,-686.29,0.00029388,2]
[312713829,1706188240186,-563.77,0.00029416,2]
[312713831,1706188240196,-563.77,0.00029704,2]
[312713833,1706188240206,-2274.0,0.00029765,2]
[312713835,1706188240216,-905.515,0.00029766,2]
[312713837,1706188240225,-570.218,0.00029766,2]
[312713839,1706188240235,-210.0,0.00029766,2]
[312713841,1706188240244,-1251.0,0.00029766,2]
[312713843,1706188240258,-1233.0,0.00029766,2]
[312713845,1706188240267,-998.0,0.00029766,2]
[312713847,1706188240277,-236.0,0.00029766,2]
[312713849,1706188240289,-1138.0,0.00029766,2]
[312713851,1706188240298,-316.95,0.00029766,2]
[312713854,1706188240307,-563.77,0.00029993,2]
[312713856,1706188240317,-357.81564083,0.0003,2]
[312713858,1706188240327,-9676.61262292,0.0003,2]
[312713860,1706188240338,-204397.43062956,0.0003,4]
[312713861,1706188240348,-155.0,0.0003,2]
[312713864,1706188240359,-5626.38614164,0.0003,2]
[312713865,1706188240369,-500.0,0.0003,2]
[312713868,1706188240379,-8855.08388633,0.0003,4]
[312713869,1706188240390,-764.8442482,0.0003,4]
[312713871,1706188240400,-208.42137695,0.0003,4]
[312713873,1706188240409,-395.58376861,0.0003,4]
[312713875,1706188240419,-203.0,0.0003,2]
[312713877,1706188240428,-1000.0,0.0003,2]
[312713880,1706188240439,-150.0,0.00030137,2]
[312713881,1706188240449,-155.0,0.00030137,2]
[312713883,1706188240458,-563.77,0.00030281,2]
[312713885,1706188240468,-563.77,0.00030569,2]
[312713887,1706188240478,-169.08,0.00030572,2]
[312713890,1706188240487,-150.0,0.00030714,2]
[312713892,1706188240496,-588.4,0.00030721,2]
[312713893,1706188240506,-563.77,0.00030858,2]
[312713896,1706188240515,-153.11542702,0.00030963,2]
[312713900,1706188240525,-600.0,0.00031,3]
[312713902,1706188240538,-563.77,0.00031146,2]
[312713905,1706188240548,-1667.59890668,0.00031264,2]
[312713908,1706188240558,-150.0,0.00031291,2]
[312713911,1706188240568,-563.77,0.00031435,2]
[312713912,1706188240579,-155.0,0.00031507,2]
[312713914,1706188240591,-180.0,0.00031644,2]
[312713916,1706188240601,-191.32,0.00031644,2]
[312713920,1706188240612,-686.29,0.00031652,2]
[312713922,1706188240623,-63171.42212099,0.000317,2]
[312713924,1706188240634,-563.77,0.00031723,2]
[312713925,1706188240645,-14424.2994908,0.000318,3]
[312713928,1706188240656,-150.0,0.00031867,2]
[312713930,1706188240667,-150.0,0.00031963,2]
[312713931,1706188240679,-500.97437734,0.00031963,2]
[312713933,1706188240690,-5000.0,0.00032,2]
[312713935,1706188240701,-156.25094584,0.00032,2]
[312713937,1706188240711,-13097.36826834,0.00032,4]
[312713939,1706188240721,-563.77,0.00032011,2]
[312713941,1706188240731,-1000.0,0.0003211,2]
[312713943,1706188240741,-563.77,0.000323,2]
[312713945,1706188240751,-150.0,0.00032444,2]
[312713947,1706188240760,-202.14005141,0.000325,2]
[312713949,1706188240770,-563.77,0.00032588,2]
[312713951,1706188240780,-770.863,0.00032766,2]
[312713953,1706188240795,-563.77,0.00032877,2]
[312713955,1706188240804,-170.26,0.00032877,15]
[312713957,1706188240817,-500.0,0.00032877,2]
[312713959,1706188240826,-500.0,0.00032877,2]
[312713961,1706188240836,-155.0,0.00032877,2]
[312713963,1706188240846,-150.0,0.00032963,2]
[312713965,1706188240856,-203.0,0.00033,2]
[312713967,1706188240866,-150.0,0.00033021,2]
[312713969,1706188240875,-1667.59890668,0.00033355,5]
[312713971,1706188240885,-150.0,0.00033598,2]
[312713973,1706188240895,-200.0,0.00033904,2]
[312713975,1706188240904,-686.29,0.00033916,2]
[312713977,1706188240914,-1000.0,0.00034,4]
[312713978,1706188240926,-150.0,0.00034175,2]
[312713979,1706188240936,-155.0,0.00034247,2]
[312713980,1706188240946,-201.98391844,0.000344,23]
[312713981,1706188240956,-4324.87772428,0.00034629,2]
[312713982,1706188240966,-150.0,0.00034751,2]
[312713983,1706188240976,-7999.99,0.000349,14]
[312713984,1706188240986,-14929.53004618,0.000349,5]
[312713985,1706188240996,-1389.48408166,0.000349,2]
[312713987,1706188241005,-1389.48408159,0.000349,2]
[312713988,1706188241014,-1389.48408159,0.000349,2]
[312713990,1706188241024,-1389.48408159,0.000349,2]
[312713993,1706188241041,-1389.48408159,0.000349,2]
[312713995,1706188241050,-1389.48408159,0.000349,2]
[312713997,1706188241060,-1389.48408159,0.000349,2]
[312713998,1706188241069,-1389.48408159,0.000349,2]
[312714000,1706188241078,-155.0,0.00035,2]
[312714002,1706188241088,-899.55612655,0.00035,2]
[312714004,1706188241097,-416.96,0.00035,2]
[312714006,1706188241107,-151.60345275,0.00035,2]
[312714008,1706188241117,-22341.30494871,0.00035,2]
[312714011,1706188241127,-1000.0,0.00035,2]
[312714013,1706188241137,-410.47451727,0.00035,2]
[312714014,1706188241146,-410.47451727,0.00035,2]
[312714016,1706188241158,-410.47451727,0.00035,2]
[312714019,1706188241168,-410.47451727,0.00035,2]
[312714020,1706188241178,-410.47451727,0.00035,2]
[312714022,1706188241188,-410.47451727,0.00035,2]
[312714025,1706188241199,-410.47451727,0.00035,2]
[312714027,1706188241209,-410.47451727,0.00035,2]
[312714029,1706188241219,-410.47451727,0.00035,2]
[312714031,1706188241228,-410.47451727,0.00035,2]
[312714033,1706188241238,-410.47451727,0.00035,2]
[312714035,1706188241248,-410.47451727,0.00035,2]
[312714037,1706188241260,-410.47451727,0.00035,2]
[312714039,1706188241271,-410.47451727,0.00035,2]
[312714041,1706188241285,-410.47451727,0.00035,2]
[312714043,1706188241295,-410.47451727,0.00035,2]
[312714045,1706188241304,-410.47451727,0.00035,2]
[312714047,1706188241314,-410.47451727,0.00035,2]
[312714049,1706188241324,-410.47451727,0.00035,2]
[312714051,1706188241334,-410.47451727,0.00035,2]
[312714053,1706188241343,-410.47451727,0.00035,2]
[312714055,1706188241353,-410.47451727,0.00035,2]
[312714057,1706188241363,-410.47451727,0.00035,2]
[312714059,1706188241372,-410.47451727,0.00035,2]
[312714061,1706188241381,-410.47451727,0.00035,2]
[312714063,1706188241391,-410.47451727,0.00035,2]
[312714065,1706188241401,-410.47451727,0.00035,2]
[312714067,1706188241410,-410.47451727,0.00035,2]
[312714069,1706188241420,-410.47451727,0.00035,2]
[312714071,1706188241429,-410.47451727,0.00035,2]
[312714073,1706188241439,-410.47451727,0.00035,2]
[312714075,1706188241448,-410.47451727,0.00035,2]
[312714077,1706188241458,-410.47451727,0.00035,2]
[312714079,1706188241466,-410.47451727,0.00035,2]
[312714081,1706188241475,-410.47451727,0.00035,2]
[312714083,1706188241485,-410.47451727,0.00035,2]
[312714085,1706188241495,-410.47451727,0.00035,2]
[312714087,1706188241504,-410.47451727,0.00035,2]
[312714089,1706188241513,-410.47451727,0.00035,2]
[312714091,1706188241522,-410.47451727,0.00035,2]
[312714093,1706188241535,-410.47451727,0.00035,2]
[312714095,1706188241546,-410.47451727,0.00035,2]
[312714097,1706188241555,-410.47451727,0.00035,2]
[312714099,1706188241564,-410.47451727,0.00035,2]
[312714101,1706188241574,-410.47451727,0.00035,2]
[312714102,1706188241584,-410.47451727,0.00035,2]
[312714104,1706188241594,-410.47451727,0.00035,2]
[312714106,1706188241603,-410.47451727,0.00035,2]
[312714108,1706188241613,-410.47451727,0.00035,2]
[312714110,1706188241622,-410.47451727,0.00035,2]
[312714112,1706188241631,-410.47451727,0.00035,2]
[312714114,1706188241641,-410.47451727,0.00035,2]
[312714117,1706188241650,-410.47451727,0.00035,2]
[312714119,1706188241659,-410.47451727,0.00035,2]
[312714121,1706188241669,-410.47451727,0.00035,2]
[312714122,1706188241679,-410.47451727,0.00035,2]
[312714124,1706188241689,-410.47451727,0.00035,2]
[312714126,1706188241698,-410.47451727,0.00035,2]
[312714128,1706188241707,-410.47451727,0.00035,2]
[312714130,1706188241716,-410.47451727,0.00035,2]
[312714132,1706188241726,-410.47451727,0.00035,2]
[312714134,1706188241735,-410.47451727,0.00035,2]
[312714136,1706188241744,-410.47451727,0.00035,2]
[312714137,1706188241757,-410.47451727,0.00035,2]
[312714138,1706188241767,-410.47451727,0.00035,2]
[312714139,1706188241777,-410.47451727,0.00035,2]
[312714140,1706188241791,-410.47451727,0.00035,2]
[312714141,1706188241801,-410.47451727,0.00035,2]
[312714142,1706188241811,-410.47451727,0.00035,2]
[312714143,1706188241821,-410.47451727,0.00035,2]
[312714144,1706188241832,-410.47451727,0.00035,2]
[312714145,1706188241842,-410.47451727,0.00035,2]
[312714146,1706188241851,-1000.0,0.00035029,2]
[312714147,1706188241861,-150.0,0.00035328,2]
[312714148,1706188241870,-1667.59890668,0.00035445,8]
[312714149,1706188241880,-1389.48408159,0.00035532,2]
[312714150,1706188241890,-161.12025026,0.00035617,2]
[312714151,1706188241899,-5843.99207667,0.00035634,14]
[312714152,1706188241909,-15792.85,0.000359,2]
[312714153,1706188241918,-150.0,0.00035905,2]
[312714154,1706188241928,-200.0,0.00035911,6]
[312714155,1706188241938,-128154.61758808,0.00036,2]
[312714156,1706188241947,-298.27718725,0.00036,4]
[312714157,1706188241957,-1315.6495,0.0003602,2]
[312714158,1706188241967,-500.0,0.00036175,2]
[312714159,1706188241976,-500.0,0.00036175,2]
[312714160,1706188241986,-500.0,0.00036175,2]
[312714161,1706188241996,-155.0,0.00036175,2]
[312714162,1706188242005,-229.57187333,0.00036175,4]
[312714163,1706188242015,-2000.0,0.00036175,2]
[312714164,1706188242025,-200.0,0.00036175,2]
[312714165,1706188242037,-200.0,0.00036175,2]
[312714166,1706188242047,-686.29,0.00036179,2]
[312714167,1706188242057,-173.73,0.000362,7]
[312714168,1706188242066,-155.0,0.0003631,4]
[312714169,1706188242076,-155.42229511,0.0003631,4]
[312714170,1706188242085,-1315.64951,0.0003633,2]
[312714171,1706188242095,-158.68,0.00036438,2]
[312714172,1706188242104,-150.0,0.00036482,2]
[312714173,1706188242115,-150.0,0.00036484,2]
[312714174,1706188242124,-200.0,0.00036537,2]
[312714175,1706188242133,-200.0,0.00036537,2]
[312714176,1706188242143,-300.0,0.00036573,2]
[312714177,1706188242152,-500.0,0.00036573,2]
[312714178,1706188242162,-500.0,0.00036573,2]
[312714179,1706188242171,-500.0,0.00036573,2]
[312714180,1706188242180,-500.0,0.00036573,2]
[312714181,1706188242189,-500.0,0.00036573,2]
[312714182,1706188242198,-500.0,0.00036573,2]
[312714183,1706188242207,-500.0,0.00036573,2]
[312714184,1706188242216,-500.0,0.00036573,2]
[312714185,1706188242226,-500.0,0.00036573,2]
[312714186,1706188242416,-500.0,0.00036573,2]
[312714187,1706188242430,-500.0,0.00036573,2]
[312714188,1706188242439,-500.0,0.00036573,2]
[312714189,1706188242449,-500.0,0.00036573,2]
[312714190,1706188242458,-500.0,0.00036573,2]
[312714191,1706188242467,-500.0,0.00036573,2]
[312714192,1706188242476,-500.0,0.00036573,2]
[312714193,1706188242487,-500.0,0.00036573,2]
[312714194,1706188242496,-500.0,0.00036573,2]
[312714195,1706188242505,-500.0,0.00036573,2]
[312714196,1706188242514,-500.0,0.00036573,2]
[312714197,1706188242524,-500.0,0.00036573,2]
[312714198,1706188242537,-500.0,0.00036573,2]
[312714199,1706188242546,-500.0,0.00036573,2]
[312714200,1706188242556,-500.0,0.00036573,2]
[312714201,1706188242566,-500.0,0.00036573,2]
[312714202,1706188242575,-500.0,0.00036573,2]
[312714203,1706188242585,-500.0,0.00036573,2]
[312714204,1706188242594,-500.0,0.00036573,2]
[312714205,1706188242604,-500.0,0.00036573,2]
[312714206,1706188242614,-500.0,0.00036573,2]
[312714207,1706188242624,-500.0,0.00036573,2]
[312714208,1706188242633,-500.0,0.00036573,2]
[312714209,1706188242643,-500.0,0.00036573,2]
[312714210,1706188242652,-500.0,0.00036573,2]
[312714211,1706188242661,-500.0,0.00036573,2]
[312714212,1706188242671,-500.0,0.00036573,2]
[312714213,1706188242681,-500.0,0.00036573,2]
[312714214,1706188242691,-500.0,0.00036573,2]
[312714215,1706188242700,-500.0,0.00036573,2]
[312714216,1706188242710,-500.0,0.00036573,2]
[312714217,1706188242721,-500.0,0.00036573,2]
[312714218,1706188242731,-500.0,0.00036573,2]
[312714219,1706188242740,-500.0,0.00036573,2]
[312714220,1706188242750,-500.0,0.00036573,2]
[312714221,1706188242760,-500.0,0.00036573,2]
[312714222,1706188242769,-500.0,0.00036573,2]
[312714223,1706188242779,-500.0,0.00036573,2]
[312714224,1706188242793,-500.0,0.00036573,2]
[312714225,1706188242802,-500.0,0.00036573,2]